lending/lending_fUSD_20240131
["ID","MTS","AMOUNT","RATE_DAILY","PERIOD"]
[313097490,1706741438360,-151.0201,0.00022948,3]
[313097492,1706741438369,-151.0201,0.00022948,3]
[313097494,1706741438378,-151.0201,0.00022948,3]
[313097496,1706741438388,-151.0201,0.00022948,3]
[313097498,1706741438398,-151.0201,0.00022948,3]
[313097500,1706741438407,-151.0201,0.00022948,3]
[313097502,1706741438416,-150.0,0.00022948,2]
[313097504,1706741438425,-150.0,0.00022963,2]
[313097506,1706741438434,-150.0,0.00022974,2]
[313097508,1706741438443,-150.0,0.00022982,2]
[313097510,1706741438452,-150.0,0.00022985,2]
[313097512,1706741438461,-150.0,0.00022989,2]
[313097514,1706741438470,-197.39115375,0.0002299,2]
[313097516,1706741438479,-197.39115375,0.0002299,2]
[313097518,1706741438488,-150.0,0.00022996,2]
[313097520,1706741438497,-155.36261242,0.00022997,2]
[313097522,1706741438506,-247.85570535,0.00022998,2]
[313097524,1706741438515,-202.3789745,0.00022998,2]
[313097526,1706741438524,-254.81428858,0.00022998,2]
[313097528,1706741438534,-491.4593696,0.00022998,2]
[313097530,1706741438543,-197.17718022,0.00022998,2]
[313097532,1706741438552,-268.84831641,0.00022998,2]
[313097534,1706741438561,-155.0,0.00022999,2]
[313097536,1706741438570,-1257.66975103,0.00022999,2]
[313097538,1706741438580,-155.0,0.00022999,2]
[313097540,1706741438589,-155.3699649,0.00022999,2]
[313097542,1706741438598,-2324.9110879,0.00022999,2]
[313097544,1706741438607,-236.85528673,0.00022999,2]
[313097546,1706741438616,-156.59218636,0.00022999,2]
[313097547,1706741438625,-155.98760561,0.00022999,2]
[313097549,1706741438635,-167.42846359,0.00022999,2]
[313097552,1706741438644,-400.0,0.00022999,2]
[313097553,1706741438653,-525.02591322,0.00022999,2]
[313097556,1706741438664,-500.0,0.00022999,2]
[313097558,1706741438674,-354.39107011,0.00022999,2]
[313097560,1706741438683,-500.0,0.00022999,2]
[313097562,1706741438695,-500.0,0.00022999,2]
[313097564,1706741438704,-465.46117598,0.00022999,2]
[313097566,1706741438715,-500.0,0.00022999,2]
[313097568,1706741438724,-500.0,0.00022999,2]
[313097570,1706741438734,-380.97562898,0.00022999,2]
[313097572,1706741438743,-500.0,0.00022999,2]
[313097574,1706741438753,-184.96259737,0.00022999,2]
[313097576,1706741438763,-500.0,0.00022999,2]
[313097578,1706741438773,-445.77051217,0.00022999,2]
[313097580,1706741438783,-469.63834896,0.00022999,2]
[313097583,1706741438793,-525.86141104,0.00022999,2]
[313097585,1706741438802,-239.09586917,0.00022999,2]
[313097587,1706741438811,-500.0,0.00022999,2]
[313097589,1706741438820,-500.0,0.00022999,2]
[313097590,1706741438829,-500.0,0.00022999,2]
[313097592,1706741438839,-500.0,0.00022999,2]
[313097594,1706741438847,-500.0,0.00022999,2]
[313097596,1706741438856,-500.0,0.00022999,2]
[313097599,1706741438870,-500.0,0.00022999,2]
[313097602,1706741438884,-171.65049727,0.00022999,2]
[313097604,1706741438898,-400.51782697,0.00022999,2]
[313097607,1706741438911,-350.00000001,0.00022999,2]
[313097609,1706741438922,-150.0,0.00022999,2]
[313097611,1706741438935,-150.0,0.00022999,2]
[313097614,1706741438947,-150.0,0.00022999,2]
[313097616,1706741438960,-150.0,0.00022999,2]
[313097618,1706741438973,-584.54159628,0.00022999,2]
[313097621,1706741438985,-2696576.01048515,0.00023,2]
[313097623,1706741438998,-304830.90981504,0.00023,2]
[313097625,1706741439009,-338.0,0.00023,2]
[313097626,1706741439020,-1248.31575144,0.00023022,2]
[313097627,1706741439033,-352.14,0.00023313,2]
[313097628,1706741439045,-300.0,0.00023318,2]
[313097629,1706741439057,-766.36,0.00023429,2]
[313097630,1706741439069,-1000.0,0.00023499,2]
[313097631,1706741439082,-204.0,0.00023728,2]
[313097632,1706741439093,-230.36,0.00023933,2]
[313097634,1706741439104,-240.7278656,0.00024,2]
[313097636,1706741439118,-168.38,0.00024297,2]
[313097639,1706741439131,-2892.51,0.00024384,2]
[313097641,1706741439144,-3850.4,0.00024384,2]
[313097643,1706741439156,-396.28,0.00024404,2]
[313097644,1706741439169,-352.14,0.00024423,2]
[313097645,1706741439181,-167.02,0.00024472,2]
[313097646,1706741439195,-19895.23096677,0.00024627,2]
[313097647,1706741439207,-250.0,0.00024658,2]
[313097648,1706741439221,-4641.48,0.00024658,2]
[313097649,1706741439236,-409.92,0.00024683,2]
[313097650,1706741439250,-300.0,0.00024688,2]
[313097651,1706741439263,-156.53137645,0.00024767,2]
[313097652,1706741439275,-737.6,0.00024836,2]
[313097653,1706741439286,-200.0,0.00025,2]
[313097654,1706741439298,-418.27294352,0.00025,2]
[313097655,1706741439311,-1906.6972547,0.00025,2]
[313097656,1706741439326,-208.41030953,0.00025,4]
[313097657,1706741439341,-933.94016922,0.00025,2]
[313097658,1706741439357,-1255.76514993,0.00025,2]
[313097659,1706741439373,-2319.98350189,0.00025,2]
[313097660,1706741439386,-509.94256107,0.00025,2]
[313097661,1706741439399,-1588.29384713,0.00025,2]
[313097662,1706741439415,-167.85164142,0.00025,2]
[313097663,1706741439429,-304.35092203,0.00025,2]
[313097664,1706741439442,-350.0,0.00025,3]
[313097665,1706741439454,-766.36,0.00025073,2]
[313097666,1706741439470,-192.91538509,0.00025422,2]
[313097667,1706741439483,-352.14,0.00025533,2]
[313097668,1706741439496,-204.0,0.00025744,5]
[313097669,1706741439509,-150.0,0.00026079,2]
[313097670,1706741439521,-7734.99205678,0.00026354,5]
[313097671,1706741439533,-19895.23096677,0.00026355,2]
[313097672,1706741439546,-156.53137645,0.00026633,2]
[313097673,1706741439557,-352.14,0.00026643,2]
[313097674,1706741439569,-396.28,0.00026668,2]
[313097675,1706741439581,-766.36,0.00026717,2]
[313097676,1706741439594,-416.68291115,0.00027,2]
[313097677,1706741439606,-400.0,0.00027,3]
[313097678,1706741439619,-155.0,0.00027397,2]
[313097679,1706741439630,-151.83,0.00027397,2]
[313097680,1706741439641,-241.0,0.00027397,4]
[313097681,1706741439652,-328.44,0.00027397,2]
[313097682,1706741439664,-2500.0,0.00027397,3]
[313097683,1706741439676,-166.23,0.00027397,2]
[313097684,1706741439689,-409.92,0.00027425,2]
[313097685,1706741439702,-737.6,0.00027596,2]
[313097686,1706741439714,-328.44,0.00027614,2]
[313097687,1706741439726,-151.83,0.00027626,2]
[313097688,1706741439738,-874.08372148,0.00027666,2]
[313097689,1706741439750,-204.0,0.00027759,8]
[313097690,1706741439761,-328.44,0.0002783,2]
[313097691,1706741439774,-151.83,0.00027854,2]
[313097692,1706741439786,-359.48898597,0.00027874,2]
[313097693,1706741439797,-556.02380392,0.00028,2]
[313097694,1706741439809,-183.82637996,0.00028,2]
[313097695,1706741439822,-328.44,0.00028046,2]
[313097696,1706741439834,-19895.23096677,0.00028082,2]
[313097697,1706741439849,-151.83,0.00028082,2]
[313097698,1706741439861,-166.23,0.0002811,2]
[313097699,1706741439873,-328.44,0.00028262,2]
[313097700,1706741439885,-168.38,0.00028307,2]
[313097701,1706741439898,-151.83,0.0002831,2]
[313097702,1706741439910,-766.36,0.00028361,2]
[313097703,1706741439921,-328.44,0.00028479,2]
[313097704,1706741439933,-156.53137645,0.000285,2]
[313097705,1706741439944,-151.83,0.00028539,2]
[313097706,1706741439956,-328.44,0.00028695,2]
[313097707,1706741439967,-155.0,0.00028767,2]
[313097708,1706741439978,-151.83,0.00028767,2]
[313097709,1706741439989,-166.23,0.00028822,2]
[313097710,1706741440000,-328.44,0.00028911,2]
[313097711,1706741440012,-396.28,0.00028932,2]
[313097712,1706741440023,-151.83,0.00028995,2]
[313097713,1706741440035,-450.0,0.00029,3]
[313097714,1706741440046,-328.44,0.00029128,2]
[313097715,1706741440058,-151.83,0.00029224,2]
[313097716,1706741440069,-328.44,0.00029344,2]
[313097717,1706741440080,-151.83,0.00029452,2]
[313097718,1706741440093,-257.56225553,0.000295,3]
[313097719,1706741440104,-328.44,0.0002956,2]
[313097720,1706741440115,-151.83,0.0002968,2]
[313097721,1706741440127,-204.0,0.00029774,11]
[313097722,1706741440139,-328.44,0.00029777,2]
[313097723,1706741440149,-277.71590008,0.000298,2]
[313097724,1706741440161,-19895.23096677,0.00029809,2]
[313097725,1706741440172,-151.83,0.00029909,2]
[313097727,1706741440183,-328.44,0.00029993,2]
[313097728,1706741440194,-622.53946678,0.00029999,2]
[313097729,1706741440205,-100000.0,0.0003,5]
[313097730,1706741440216,-155.0,0.0003,2]
[313097731,1706741440228,-87262.11639735,0.0003,4]
[313097732,1706741440239,-5911.9335595,0.0003,2]
[313097733,1706741440251,-4607.34919322,0.0003,4]
[313097734,1706741440262,-375.38823797,0.0003,2]
[313097736,1706741440273,-587.94656821,0.0003,2]
[313097738,1706741440285,-252.37950753,0.0003,4]
[313097739,1706741440296,-698.74199123,0.0003,2]
[313097740,1706741440307,-204.0,0.0003,2]
[313097742,1706741440319,-916.66666,0.0003,2]
[313097745,1706741440331,-916.66666,0.0003,2]
[313097747,1706741440342,-916.66667,0.0003,2]
[313097748,1706741440353,-916.66667,0.0003,2]
[313097749,1706741440365,-916.66667,0.0003,2]
[313097750,1706741440377,-916.66667,0.0003,2]
[313097751,1706741440388,-500.0,0.0003,2]
[313097752,1706741440400,-766.36,0.00030005,2]
[313097753,1706741440411,-153143.78377457,0.000301,2]
[313097754,1706741440422,-151.83,0.00030137,2]
[313097755,1706741440433,-155.82,0.00030137,2]
[313097756,1706741440445,-310.0,0.00030137,2]
[313097757,1706741440457,-409.92,0.00030168,2]
[313097758,1706741440469,-328.44,0.00030209,2]
[313097759,1706741440480,-737.6,0.00030355,2]
[313097760,1706741440491,-151.83,0.00030365,2]
[313097761,1706741440502,-156.53137645,0.00030367,2]
[313097762,1706741440513,-2766.0,0.000304,3]
[313097763,1706741440524,-5424.0,0.000304,3]
[313097764,1706741440536,-328.44,0.00030425,2]
[313097765,1706741440547,-151.83,0.00030593,2]
[313097766,1706741440558,-328.44,0.00030642,2]
[313097767,1706741440569,-151.83,0.00030822,2]
[313097768,1706741440580,-328.44,0.00030858,2]
[313097769,1706741440592,-677.899,0.00030904,2]
[313097770,1706741440603,-1213.0,0.00030904,2]
[313097771,1706741440615,-427.0,0.00030904,2]
[313097772,1706741440628,-271.166,0.00030904,2]
[313097773,1706741440639,-258.168,0.00030904,2]
[313097774,1706741440648,-150.475,0.00030904,2]
[313097775,1706741440657,-860.0,0.00030904,2]
[313097776,1706741440666,-320.0,0.00030904,2]
[313097777,1706741440675,-226.984,0.00030904,2]
[313097778,1706741440686,-150.0,0.00030904,2]
[313097779,1706741440696,-100000.0,0.00031,6]
[313097780,1706741440706,-258.10134389,0.00031,4]
[313097781,1706741440715,-500.0,0.00031,3]
[313097782,1706741440724,-151.83,0.0003105,2]
[313097783,1706741440735,-155.82,0.0003105,2]
[313097784,1706741440744,-328.44,0.00031074,2]
[313097785,1706741440753,-396.28,0.00031196,2]
[313097786,1706741440762,-499.60812977,0.00031248,2]
[313097787,1706741441056,-151.83,0.00031278,2]
[313097788,1706741441074,-328.44,0.00031291,2]
[313097789,1706741441083,-151.83,0.00031507,2]
[313097790,1706741441093,-328.44,0.00031507,2]
[313097791,1706741441103,-19895.23096677,0.00031536,3]
[313097792,1706741441112,-190.2,0.00031644,2]
[313097793,1706741441122,-180.0,0.00031644,2]
[313097794,1706741441131,-4844.12436476,0.000317,2]
[313097795,1706741441140,-204.0,0.00031789,14]
[313097796,1706741441150,-3210.15715482,0.00031797,2]
[313097797,1706741441158,-150.0,0.00031799,2]
[313097798,1706741441167,-150.0,0.00031799,2]
[313097799,1706741441176,-294822.138482,0.000318,3]
[313097800,1706741441185,-582.0,0.000319,5]
[313097801,1706741441194,-155.82,0.00031963,2]
[313097802,1706741441203,-100000.0,0.00032,7]
[313097803,1706741441212,-155.0,0.00032,2]
[313097804,1706741441221,-1899.19893314,0.00032071,28]
[313097805,1706741441230,-156.53137645,0.00032233,2]
[313097806,1706741441239,-874.08372148,0.00032433,4]
[313097807,1706741441248,-4844.12,0.000327,2]
[313097808,1706741441257,-155.82,0.00032877,2]
[313097809,1706741441266,-500.0,0.00032877,2]
[313097810,1706741441275,-409.92,0.00032911,2]
[313097811,1706741441285,-100000.0,0.00033,8]
[313097812,1706741441294,-1480.16222093,0.00033,5]
[313097813,1706741441303,-550.0,0.00033,3]
[313097814,1706741441312,-591.69,0.00033038,2]
[313097815,1706741441321,-1000.0,0.00033086,2]
[313097816,1706741441330,-737.6,0.00033115,2]
[313097817,1706741441339,-1000.0,0.00033151,120]
[313097818,1706741441348,-19895.23096677,0.00033264,5]
[313097819,1706741441357,-396.28,0.0003346,2]
[313097820,1706741441366,-155.82,0.0003379,2]
[313097821,1706741441375,-204.0,0.00033804,18]
[313097822,1706741441384,-236.0,0.00033904,2]
[313097823,1706741441393,-427.0,0.00033904,2]
[313097824,1706741441402,-236.595,0.00033904,2]
[313097825,1706741441410,-100000.0,0.00034,9]
[313097826,1706741441420,-507.31895461,0.00034,4]
[313097827,1706741441429,-156.53137645,0.000341,2]
[313097828,1706741441438,-428.286236,0.0003452,2]
[313097829,1706741441446,-321.214677,0.0003452,2]
[313097830,1706741441455,-150.0,0.00034548,10]
[313097831,1706741441464,-155.82,0.00034703,2]
[313097832,1706741441474,-151.0,0.0003472,120]
[313097833,1706741441483,-642.429354,0.00034794,2]
[313097834,1706741441492,-481.822016,0.00034794,2]
[313097835,1706741441501,-591.0,0.000348,2]
[313097836,1706741441511,-4060.58188976,0.000349,2]
[313097837,1706741441520,-4060.58188969,0.000349,2]
[313097838,1706741441529,-4060.58188969,0.000349,2]
[313097839,1706741441538,-4060.58188969,0.000349,2]
[313097840,1706741441548,-4060.58188969,0.000349,2]
[313097841,1706741441557,-4060.58188969,0.000349,2]
[313097842,1706741441565,-4060.58188969,0.000349,2]
[313097843,1706741441575,-4060.58188969,0.000349,2]
[313097844,1706741441584,-856.572473,0.00034931,2]
[313097845,1706741441593,-642.429354,0.00034931,2]
[313097846,1706741441602,-19895.23096677,0.00034991,7]
[313097847,1706741441612,-100000.0,0.00035,15]
[313097848,1706741441621,-5000.0,0.00035,7]
[313097849,1706741441629,-4048.14991295,0.00035,15]
[313097850,1706741441638,-1817.22,0.00035,5]
[313097851,1706741441647,-1807.09,0.00035,5]
[313097852,1706741441656,-155.0,0.00035,4]
[313097853,1706741441665,-1264.50569763,0.00035,4]
[313097854,1706741441674,-905.45468879,0.00035,4]
[313097855,1706741441684,-3000.0,0.00035,2]
[313097856,1706741441694,-16576.29713723,0.00035,3]
[313097857,1706741441703,-155.41728124,0.00035,2]
[313097858,1706741441712,-221.51654335,0.00035,4]
[313097859,1706741441721,-155.0,0.00035,2]
[313097860,1706741441730,-504.2735169,0.00035,2]
[313097861,1706741441739,-600.0,0.00035,3]
[313097862,1706741441748,-450.0,0.00035,3]
[313097863,1706741441757,-29129.57756809,0.00035,2]
[313097864,1706741441767,-225.94849607,0.00035,4]
[313097865,1706741441777,-3000.0,0.00035,11]
[313097866,1706741441786,-175.30167221,0.00035,2]
[313097867,1706741441795,-4565.426632,0.0003501,11]
[313097868,1706741441804,-1070.715591,0.00035068,2]
[313097869,1706741441813,-803.036693,0.00035068,2]
[313097870,1706741441822,-19176.38800721,0.0003509,2]
[313097871,1706741441830,-29065.0,0.00035106,2]
[313097872,1706741441840,-1499.001828,0.00035342,2]
[313097873,1706741441849,-1124.25137,0.00035342,2]
[313097874,1706741441858,-150.576424,0.000354,2]
[313097875,1706741441868,-151.0,0.00035429,30]
[313097876,1706741441877,-4060.58188969,0.00035432,2]
[313097877,1706741441886,-155.82,0.00035616,2]
[313097878,1706741441895,-2892.51,0.00035616,2]
[313097879,1706741441904,-3850.4,0.00035616,2]
[313097880,1706741441913,-5837.06,0.00035616,2]
[313097881,1706741441922,-4599.98001366,0.00035683,7]
[313097882,1706741441932,-1198.2555167,0.00035683,7]
[313097883,1706741441941,-13667.04630583,0.00035683,7]
[313097884,1706741441950,-644.90467432,0.00035683,7]
[313097885,1706741441959,-168.84,0.000357,7]
[313097886,1706741441969,-1064.89,0.000357,7]
[313097887,1706741441979,-396.28,0.00035724,2]
[313097888,1706741441988,-204.0,0.00035819,21]
[313097889,1706741441997,-156.53137645,0.00035967,2]
[313097890,1706741442006,-150.0,0.00035999,2]
[313097891,1706741442015,-150.0,0.00035999,2]
[313097892,1706741442024,-100000.0,0.00036,16]
[313097893,1706741442033,-151.0,0.00036152,7]
[313097894,1706741442042,-1000.0,0.000362,2]
[313097895,1706741442051,-202.164828,0.00036206,5]
[313097896,1706741442060,-366.0,0.00036224,2]
[313097897,1706741442070,-155.82,0.0003653,2]
[313097898,1706741442079,-19895.23096677,0.00036718,9]
[313097899,1706741442091,-900.0,0.0003677,2]
[313097900,1706741442100,-700.0,0.0003687,2]
[313097901,1706741442110,-151.0,0.0003689,4]
[313097902,1706741442120,-3210.15715482,0.00036897,2]
[313097903,1706741442129,-500.0,0.000369,2]
[313097904,1706741442140,-500.0,0.000369,2]
[313097905,1706741442149,-500.0,0.000369,2]
[313097906,1706741442158,-500.0,0.000369,2]
[313097907,1706741442167,-500.0,0.000369,2]
[313097908,1706741442176,-500.0,0.000369,2]
[313097909,1706741442185,-500.0,0.000369,2]
[313097910,1706741442194,-500.0,0.000369,2]
[313097911,1706741442204,-500.0,0.000369,2]
[313097912,1706741442214,-500.0,0.000369,2]
[313097913,1706741442224,-500.0,0.000369,2]
[313097914,1706741442234,-500.0,0.000369,2]
[313097915,1706741442245,-500.0,0.000369,2]
[313097916,1706741442254,-500.0,0.000369,2]
[313097917,1706741442263,-500.0,0.000369,2]
[313097918,1706741442272,-500.0,0.000369,2]
[313097919,1706741442281,-500.0,0.000369,2]
[313097920,1706741442290,-500.0,0.000369,2]
[313097921,1706741442299,-500.0,0.000369,2]
[313097922,1706741442308,-500.0,0.000369,2]
[313097923,1706741442317,-500.0,0.000369,2]
[313097924,1706741442328,-500.0,0.000369,2]
[313097925,1706741442337,-500.0,0.000369,2]
[313097926,1706741442347,-500.0,0.000369,2]
[313097927,1706741442355,-500.0,0.000369,2]
[313097928,1706741442365,-500.0,0.000369,2]
[313097929,1706741442373,-500.0,0.000369,2]
[313097930,1706741442383,-500.0,0.000369,2]
[313097931,1706741442393,-500.0,0.000369,2]
[313097932,1706741442403,-500.0,0.000369,2]
[313097933,1706741442414,-500.0,0.000369,2]
[313097934,1706741442423,-500.0,0.000369,2]
[313097935,1706741442431,-500.0,0.000369,2]
[313097936,1706741442440,-500.0,0.000369,2]
[313097937,1706741442452,-500.0,0.000369,2]
[313097938,1706741442460,-500.0,0.000369,2]
[313097939,1706741442470,-500.0,0.000369,2]
[313097940,1706741442483,-18746.78039763,0.000369,7]
[313097941,1706741442491,-424.0,0.00036904,2]
[313097942,1706741442501,-236.0,0.00036904,2]
[313097943,1706741442510,-5837.06,0.00036934,2]
[313097944,1706741442519,-173.101966,0.00036973,2]
[313097945,1706741442529,-3260.860548,0.00036973,2]
[313097947,1706741442538,-173.101964,0.00036973,2]
[313097949,1706741442548,-9782.581644,0.00036973,2]
[313097951,1706741442557,-173.101964,0.00036973,2]
[313097953,1706741442567,-3260.860548,0.00036973,2]
[313097954,1706741442576,-173.101964,0.00036973,2]
[313097955,1706741442585,-178.652212,0.00036973,2]
[313097956,1706741442594,-222.639893,0.00036973,2]
[313097957,1706741442603,-158.184198,0.00036973,2]
[313097958,1706741442611,-487.200419,0.00036973,2]
[313097959,1706741442620,-6614.864928,0.00036973,2]
[313097960,1706741442629,-172.459649,0.00036973,2]
[313097961,1706741442638,-500.0,0.00036999,2]
[313097962,1706741442647,-500.0,0.00036999,2]
[313097963,1706741442656,-500.0,0.00036999,2]
[313097964,1706741442665,-300.0,0.00036999,2]
[313097965,1706741442674,-500.0,0.00036999,2]
[313097966,1706741442684,-100000.0,0.00037,17]
[313097967,1706741442694,-351.94775369,0.00037,4]
[313097968,1706741442704,-8000.0,0.00037,7]
[313097969,1706741442713,-650.0,0.00037,3]
[313097970,1706741442722,-4060.58188969,0.00037011,2]
[313097971,1706741442731,-874.08372148,0.00037199,10]
[313097972,1706741442741,-200000.0,0.00037214,15]
[313097973,1706741442750,-1000.0,0.00037315,2]
[313097974,1706741442759,-3260.860548,0.00037435,2]
[313097975,1706741442768,-9782.581644,0.00037435,2]
[313097976,1706741442779,-3260.860548,0.00037435,2]
[313097977,1706741442788,-487.200419,0.00037435,2]
[313097978,1706741442797,-6614.864928,0.00037435,2]
[313097979,1706741442806,-155.82,0.00037443,2]
[313097980,1706741442815,-202.58121259,0.000375,2]
[313097981,1706741442824,-764.11347582,0.000375,4]
[313097982,1706741442833,-151.0,0.00037643,2]
[313097983,1706741442842,-1064.89,0.000377,7]
[313097984,1706741442852,-3108.12,0.000377,3]
[313097985,1706741442861,-153.95,0.000377,3]
[313097986,1706741442871,-153.95,0.000377,3]
[313097987,1706741442880,-153.95,0.000377,3]
[313097988,1706741442890,-153.95,0.000377,3]
[313097989,1706741442899,-4844.12,0.000377,3]
[313097990,1706741442909,-156.53137645,0.00037833,2]
[313097991,1706741442918,-204.0,0.00037834,24]
[313097992,1706741442927,-700.0,0.0003787,2]
[313097993,1706741442936,-200.0,0.0003789,7]
[313097994,1706741442946,-200.0,0.0003789,7]
[313097995,1706741442956,-200.0,0.0003789,7]
[313097996,1706741442966,-200.0,0.0003789,7]
[313097997,1706741442975,-200.0,0.0003789,7]
[313097998,1706741442984,-200.0,0.0003789,7]
[313097999,1706741442994,-200.0,0.0003789,7]
[313098000,1706741443004,-200.0,0.0003789,7]
[313098001,1706741443013,-3260.860548,0.00037897,2]
[313098002,1706741443023,-9782.581644,0.00037897,2]
[313098003,1706741443033,-3260.860548,0.00037897,2]
[313098004,1706741443042,-487.200419,0.00037897,2]
[313098005,1706741443051,-6614.864928,0.00037897,2]
[313098006,1706741443061,-172.459649,0.00037897,2]
[313098007,1706741443071,-150.0,0.00037899,2]
[313098008,1706741443081,-150.0,0.00037899,2]
[313098009,1706741443091,-4497.37024342,0.000379,7]
[313098010,1706741443100,-200.0,0.000379,2]
[313098011,1706741443109,-679465.245172,0.000379,3]
[313098012,1706741443118,-481.285443,0.000379,2]
[313098013,1706741443127,-1000.0,0.000379,21]
[313098014,1706741443136,-278.960833,0.000379,2]
[313098015,1706741443145,-150.0,0.00037903,7]
[313098016,1706741443154,-304.761,0.00037903,7]
[313098017,1706741443163,-396.28,0.00037988,2]
[313098018,1706741443172,-3210.15715482,0.00037997,2]
[313098019,1706741443181,-1100.99629937,0.00037999,30]
[313098020,1706741443190,-100000.0,0.00038,18]
[313098021,1706741443199,-268.65695987,0.00038,3]
[313098022,1706741443208,-19350.00393055,0.00038,2]
[313098023,1706741443217,-600.0,0.00038,39]
[313098024,1706741443226,-1301.752535,0.00038,21]
[313098025,1706741443237,-5837.06,0.00038252,2]
[313098026,1706741443246,-250.0,0.00038256,2]
[313098027,1706741443257,-700.0,0.0003827,2]
[313098028,1706741443266,-1835.89,0.00038356,5]
[313098029,1706741443275,-500.0,0.00038356,5]
[313098030,1706741443285,-519.61527626,0.00038356,5]
[313098031,1706741443294,-505.10507968,0.00038356,5]
[313098032,1706741443303,-513.42718519,0.00038356,5]
[313098033,1706741443313,-507.49609647,0.00038356,5]
[313098034,1706741443323,-531.29891164,0.00038356,5]
[313098035,1706741443334,-513.27069722,0.00038356,5]
[313098036,1706741443345,-529.88518795,0.00038356,5]
[313098037,1706741443355,-530.42538338,0.00038356,5]
[313098038,1706741443366,-504.66950699,0.00038356,5]
[313098039,1706741443377,-511.71718218,0.00038356,5]
[313098040,1706741443388,-524.02853884,0.00038356,5]
[313098041,1706741443397,-194.00511421,0.00038356,9]
[313098042,1706741443407,-500.0,0.00038356,5]
[313098043,1706741443418,-500.0,0.00038356,5]
[313098044,1706741443428,-582.99557336,0.00038356,5]
[313098045,1706741443439,-516.58765256,0.00038356,5]
[313098046,1706741443449,-500.0,0.00038356,5]
[313098047,1706741443460,-500.0,0.00038356,5]
[313098048,1706741443470,-500.0,0.00038356,5]
[313098049,1706741443479,-561.97715651,0.00038356,5]
[313098050,1706741443489,-410.81504426,0.00038356,5]
[313098051,1706741443498,-500.0,0.00038356,5]
[313098052,1706741443507,-500.0,0.00038356,5]
[313098053,1706741443516,-516.09042419,0.00038356,2]
[313098054,1706741443525,-501.85995366,0.00038356,5]
[313098055,1706741443536,-500.0,0.00038356,5]
[313098056,1706741443545,-196.43753151,0.00038356,5]
[313098057,1706741443554,-541.5999859,0.00038356,5]
[313098058,1706741443563,-449.28271931,0.00038356,5]
[313098059,1706741443573,-209.32856642,0.00038356,5]
[313098060,1706741443582,-500.0,0.00038356,5]
[313098061,1706741443592,-510.63364645,0.00038356,5]
[313098062,1706741443601,-560.91682286,0.00038356,5]
[313098063,1706741443610,-619.06391363,0.00038356,5]
[313098064,1706741443619,-238.00270007,0.00038356,5]
[313098065,1706741443629,-500.0,0.00038356,5]
[313098066,1706741443638,-500.0,0.00038356,5]
[313098067,1706741443647,-500.0,0.00038356,5]
[313098068,1706741443656,-525.12553441,0.00038356,5]
[313098069,1706741443666,-500.0,0.00038356,5]
[313098070,1706741443675,-357.52784035,0.00038356,5]
[313098071,1706741443685,-508.5782233,0.00038356,5]
[313098072,1706741443695,-500.0,0.00038356,5]
[313098073,1706741443706,-500.0,0.00038356,5]
[313098074,1706741443715,-500.0,0.00038356,5]
[313098075,1706741443724,-500.0,0.00038356,5]
[313098076,1706741443734,-500.0,0.00038356,5]